[Event "*** Titled Tuesday 3|2 Blitz"]
[Site "Chess.com"]
[Date "2016.05.03"]
[Round "1"]
[White "jcibarra"]
[Black "Rickstereo"]
[Result "1-0"]
[WhiteElo "2531"]
[BlackElo "2178"]
[TimeControl "180+2"]
[EndTime "11:07:55 PDT"]
[Termination "jcibarra won by resignation"]

1. e4 {[%clk 0:03:00.5]} 1... c5 {[%clk 0:02:39.1]} 2. Nf3 {[%clk 0:02:59.6]}
2... Nc6 {[%clk 0:02:39.8]} 3. d4 {[%clk 0:03:00.5]} 3... cxd4 {[%clk
0:02:40.8]} 4. Nxd4 {[%clk 0:03:02.4]} 4... Nf6 {[%clk 0:02:41.3]} 5. Nc3 {[%clk
0:03:03.7]} 5... e5 {[%clk 0:02:42.3]} 6. Ndb5 {[%clk 0:03:04.9]} 6... d6 {[%clk
0:02:43.4]} 7. Bg5 {[%clk 0:03:06.4]} 7... a6 {[%clk 0:02:44.5]} 8. Na3 {[%clk
0:03:08]} 8... b5 {[%clk 0:02:45.7]} 9. Bxf6 {[%clk 0:03:09.5]} 9... gxf6 {[%clk
0:02:46.4]} 10. Nd5 {[%clk 0:03:11.4]} 10... f5 {[%clk 0:02:47.4]} 11. g3 {[%clk
0:03:12.5]} 11... fxe4 {[%clk 0:02:43.1]} 12. Bg2 {[%clk 0:03:13.1]} 12... Be6
{[%clk 0:02:43.8]} 13. Bxe4 {[%clk 0:03:13.4]} 13... Rc8 {[%clk 0:02:44.3]} 14.
Qh5 {[%clk 0:03:09]} 14... Bg7 {[%clk 0:02:41.2]} 15. Rd1 {[%clk 0:03:08.6]}
15... h6 {[%clk 0:02:28.7]} 16. O-O {[%clk 0:02:56.9]} 16... O-O {[%clk
0:02:15.1]} 17. c3 {[%clk 0:02:54.3]} 17... f5 {[%clk 0:01:58.6]} 18. Bg2 {[%clk
0:02:55.2]} 18... Ne7 {[%clk 0:01:58.3]} 19. Nc2 {[%clk 0:02:51]} 19... Kh7
{[%clk 0:01:23.7]} 20. Ncb4 {[%clk 0:02:48.4]} 20... Bf7 {[%clk 0:01:21.1]} 21.
Qh4 {[%clk 0:02:42.9]} 21... Nxd5 {[%clk 0:01:10.4]} 22. Qxd8 {[%clk 0:02:43.6]}
22... Rfxd8 {[%clk 0:01:08.8]} 23. Bxd5 {[%clk 0:02:44.9]} 23... Bh5 {[%clk
0:00:57.9]} 24. Be6 {[%clk 0:02:45.7]} 24... Bxd1 {[%clk 0:00:54.8]} 25. Bxf5+
{[%clk 0:02:46.9]} 25... Kh8 {[%clk 0:00:52.5]} 26. Bxc8 {[%clk 0:02:48.8]}
26... Rxc8 {[%clk 0:00:48.2]} 27. Rxd1 {[%clk 0:02:48.9]} 27... a5 {[%clk
0:00:49.5]} 28. Nd5 {[%clk 0:02:48.2]} 28... Rc5 {[%clk 0:00:34.2]} 29. Ne7
{[%clk 0:02:44.9]} 29... b4 {[%clk 0:00:30.5]} 30. cxb4 {[%clk 0:02:41.7]} 30...
axb4 {[%clk 0:00:31]} 31. Rxd6 {[%clk 0:02:40.8]} 31... Rc2 {[%clk 0:00:27.2]}
32. b3 {[%clk 0:02:36.9]} 32... e4 {[%clk 0:00:27.5]} 33. Nf5 {[%clk 0:02:32.4]}
33... Bc3 {[%clk 0:00:26.3]} 34. Rxh6+ {[%clk 0:02:31.9]} 34... Kg8 {[%clk
0:00:27.7]} 35. Rh4 {[%clk 0:02:20.3]} 35... Rxa2 {[%clk 0:00:25]} 36. Rxe4
{[%clk 0:02:20.6]} 36... Rb2 {[%clk 0:00:26.5]} 37. Ne7+ {[%clk 0:02:11.9]}
37... Kf7 {[%clk 0:00:26.2]} 38. Nd5 {[%clk 0:02:13.2]} 38... Rxb3 {[%clk
0:00:26.2]} 39. Kg2 {[%clk 0:02:03.2]} 39... Bd2 {[%clk 0:00:24.6]} 40. Rd4
{[%clk 0:02:03.1]} 40... Rb2 {[%clk 0:00:20.5]} 41. h4 {[%clk 0:01:58.8]} 41...
Be1 {[%clk 0:00:20.7]} 42. Rf4+ {[%clk 0:01:57.9]} 42... Ke6 {[%clk 0:00:21.7]}
43. Re4+ {[%clk 0:01:58.4]} 43... Kxd5 {[%clk 0:00:19]} 44. Rxe1 {[%clk
0:02:00.3]} 44... b3 {[%clk 0:00:18.4]} 45. h5 {[%clk 0:02:01.1]} 45... Ra2
{[%clk 0:00:19.6]} 46. g4 {[%clk 0:01:57.5]} 46... Kc4 {[%clk 0:00:17.5]} 47. h6
{[%clk 0:01:57.9]} 47... Ra6 {[%clk 0:00:17.6]} 48. g5 {[%clk 0:01:58]} 48...
Rg6 {[%clk 0:00:18]} 49. f4 {[%clk 0:01:58.7]} 49... b2 {[%clk 0:00:18.7]} 50.
h7 {[%clk 0:01:59.8]} 1-0

[Event "*** Titled Tuesday 3|2 Blitz"]
[Site "Chess.com"]
[Date "2016.05.03"]
[Round "1"]
[White "Zurability"]
[Black "GMVladimir_Petkov"]
[Result "1-0"]
[WhiteElo "2406"]
[BlackElo "1935"]
[TimeControl "180+2"]
[EndTime "11:07:56 PDT"]
[Termination "Zurability won by checkmate"]

1. e4 {[%clk 0:03:00.7]} 1... e5 {[%clk 0:03:00.2]} 2. Nf3 {[%clk 0:03:00.2]}
2... Nc6 {[%clk 0:03:01.3]} 3. Bc4 {[%clk 0:03:01.5]} 3... Bc5 {[%clk
0:03:00.2]} 4. O-O {[%clk 0:03:01.7]} 4... Nf6 {[%clk 0:02:59.7]} 5. d3 {[%clk
0:03:03]} 5... O-O {[%clk 0:02:58.6]} 6. c3 {[%clk 0:03:04.4]} 6... d5 {[%clk
0:02:59.1]} 7. exd5 {[%clk 0:03:06.3]} 7... Nxd5 {[%clk 0:03:00.4]} 8. a4 {[%clk
0:03:07.9]} 8... Nb6 {[%clk 0:03:00.8]} 9. Bb5 {[%clk 0:03:06.5]} 9... Bg4
{[%clk 0:02:59.7]} 10. Re1 {[%clk 0:03:03]} 10... Bd6 {[%clk 0:03:00.3]} 11. a5
{[%clk 0:03:02.4]} 11... Nd5 {[%clk 0:02:59.4]} 12. a6 {[%clk 0:03:03.4]} 12...
Rb8 {[%clk 0:02:52.5]} 13. axb7 {[%clk 0:03:03.8]} 13... Nce7 {[%clk 0:02:49.6]}
14. Rxa7 {[%clk 0:03:00.8]} 14... c6 {[%clk 0:02:49.2]} 15. Bc4 {[%clk
0:02:59.1]} 15... Bc5 {[%clk 0:02:48.9]} 16. Ra8 {[%clk 0:02:57.3]} 16... Ng6
{[%clk 0:02:48.1]} 17. Nbd2 {[%clk 0:02:46.1]} 17... Rxa8 {[%clk 0:02:45.4]} 18.
bxa8=Q {[%clk 0:02:48]} 18... Qxa8 {[%clk 0:02:46.8]} 19. h3 {[%clk 0:02:45.1]}
19... Qa7 {[%clk 0:02:31]} 20. Ne4 {[%clk 0:02:45.6]} 20... Bxf3 {[%clk
0:02:18.9]} 21. Qxf3 {[%clk 0:02:47.5]} 21... Bb6 {[%clk 0:02:19.5]} 22. Ng3
{[%clk 0:01:05.3]} 22... Ndf4 {[%clk 0:02:14.5]} 23. Bxf4 {[%clk 0:01:04.2]}
23... exf4 {[%clk 0:02:15.2]} 24. Nf5 {[%clk 0:01:00.1]} 24... Qd7 {[%clk
0:02:11.8]} 25. Qg4 {[%clk 0:01:00.5]} 25... Rd8 {[%clk 0:02:10.8]} 26. d4
{[%clk 0:00:58.4]} 26... c5 {[%clk 0:02:11.2]} 27. d5 {[%clk 0:00:56.9]} 27...
Bc7 {[%clk 0:02:12]} 28. d6 {[%clk 0:00:53.3]} 28... Bxd6 {[%clk 0:02:04.1]} 29.
Rd1 {[%clk 0:00:53.5]} 29... Qc7 {[%clk 0:01:59.9]} 30. Qg5 {[%clk 0:00:43.2]}
30... Rd7 {[%clk 0:01:47.6]} 31. h4 {[%clk 0:00:40.5]} 31... Bf8 {[%clk
0:01:41.7]} 32. Re1 {[%clk 0:00:37.2]} 32... Kh8 {[%clk 0:01:25.6]} 33. Re8
{[%clk 0:00:26.1]} 33... Rd1+ {[%clk 0:01:14.3]} 34. Kh2 {[%clk 0:00:27.2]}
34... f3+ {[%clk 0:01:15.8]} 35. g3 {[%clk 0:00:27.9]} 35... f6 {[%clk
0:01:02.7]} 36. Qe3 {[%clk 0:00:15.9]} 36... Qd7 {[%clk 0:00:57.3]} 37. Qe6
{[%clk 0:00:17]} 37... h5 {[%clk 0:00:51.1]} 38. Qg8# {[%clk 0:00:16.8]} 1-0

[Event "*** Titled Tuesday 3|2 Blitz"]
[Site "Chess.com"]
[Date "2016.05.03"]
[Round "1"]
[White "motivated_bishop"]
[Black "Izoria123"]
[Result "0-1"]
[WhiteElo "2293"]
[BlackElo "2623"]
[TimeControl "180+2"]
[EndTime "11:07:59 PDT"]
[Termination "Izoria123 won by resignation"]

1. d4 {[%clk 0:02:58.6]} 1... Nf6 {[%clk 0:02:59.6]} 2. c4 {[%clk 0:02:58.2]}
2... g6 {[%clk 0:03:00.3]} 3. Nc3 {[%clk 0:02:58.9]} 3... Bg7 {[%clk 0:03:01]}
4. e4 {[%clk 0:02:59.8]} 4... d6 {[%clk 0:03:02.6]} 5. f3 {[%clk 0:02:58.2]}
5... O-O {[%clk 0:03:03.7]} 6. Be3 {[%clk 0:02:59.3]} 6... c5 {[%clk 0:03:03.9]}
7. Nge2 {[%clk 0:03:00]} 7... Qa5 {[%clk 0:02:58.1]} 8. Nc1 {[%clk 0:02:58.3]}
8... cxd4 {[%clk 0:02:55.4]} 9. Nb3 {[%clk 0:02:58.7]} 9... Qh5 {[%clk
0:02:55.8]} 10. Nxd4 {[%clk 0:02:59]} 10... Nc6 {[%clk 0:02:57.4]} 11. Qd2
{[%clk 0:02:53.2]} 11... Nxd4 {[%clk 0:02:53.4]} 12. Bxd4 {[%clk 0:02:54.1]}
12... Be6 {[%clk 0:02:53.8]} 13. Be2 {[%clk 0:02:44.4]} 13... Nd7 {[%clk
0:02:28.3]} 14. Be3 {[%clk 0:02:05.3]} 14... Rfc8 {[%clk 0:02:04.9]} 15. Nd5
{[%clk 0:01:57.4]} 15... Bxd5 {[%clk 0:02:03.4]} 16. cxd5 {[%clk 0:01:56.1]}
16... Qe5 {[%clk 0:01:22.3]} 17. Rb1 {[%clk 0:01:56.1]} 17... f5 {[%clk
0:01:22.1]} 18. exf5 {[%clk 0:01:56.3]} 18... Qxf5 {[%clk 0:01:22.9]} 19. O-O
{[%clk 0:01:56.9]} 19... Rc2 {[%clk 0:01:14.3]} 20. Bd3 {[%clk 0:01:23.1]} 20...
Rxd2 {[%clk 0:01:08]} 21. Bxf5 {[%clk 0:01:22.2]} 21... Re2 {[%clk 0:01:08.2]}
22. Be6+ {[%clk 0:01:20.5]} 22... Kf8 {[%clk 0:01:08.9]} 23. Bf2 {[%clk
0:01:02.9]} 23... Nc5 {[%clk 0:01:08.5]} 24. Bxc5 {[%clk 0:00:35]} 24... dxc5
{[%clk 0:01:10.4]} 25. b3 {[%clk 0:00:31.9]} 25... b5 {[%clk 0:01:02.9]} 26. a4
{[%clk 0:00:29.6]} 26... bxa4 {[%clk 0:01:00.5]} 27. bxa4 {[%clk 0:00:31.5]}
27... c4 {[%clk 0:00:59.7]} 28. Rfe1 {[%clk 0:00:20]} 28... Bd4+ {[%clk
0:00:59.6]} 29. Kh1 {[%clk 0:00:20.3]} 29... Rxe1+ {[%clk 0:01:00.8]} 30. Rxe1
{[%clk 0:00:21]} 30... c3 {[%clk 0:01:02.7]} 31. Rc1 {[%clk 0:00:14.6]} 31...
Rb8 {[%clk 0:00:58.4]} 32. g3 {[%clk 0:00:11.7]} 32... Rb2 {[%clk 0:00:58.8]}
33. d6 {[%clk 0:00:10]} 33... exd6 {[%clk 0:00:59.4]} 34. Bd5 {[%clk 0:00:11.9]}
34... Rd2 {[%clk 0:00:52.7]} 35. Be4 {[%clk 0:00:13.8]} 35... Be5 {[%clk
0:00:52.5]} 36. Bd5 {[%clk 0:00:15.7]} 36... Rxd5 {[%clk 0:00:52.9]} 0-1

[Event "*** Titled Tuesday 3|2 Blitz"]
[Site "Chess.com"]
[Date "2016.05.03"]
[Round "1"]
[White "Iwannabetheguy"]
[Black "pKiLz5Rn9b"]
[Result "0-1"]
[WhiteElo "1998"]
[BlackElo "2393"]
[TimeControl "180+2"]
[EndTime "11:08:11 PDT"]
[Termination "pKiLz5Rn9b won by resignation"]

1. e4 {[%clk 0:03:01.9]} 1... e6 {[%clk 0:02:59.8]} 2. d4 {[%clk 0:03:02.1]}
2... d5 {[%clk 0:03:00.2]} 3. Nc3 {[%clk 0:03:03.4]} 3... Nf6 {[%clk 0:03:00.6]}
4. Bg5 {[%clk 0:03:03.5]} 4... Be7 {[%clk 0:03:01.5]} 5. e5 {[%clk 0:03:03.7]}
5... Nfd7 {[%clk 0:03:02.8]} 6. h4 {[%clk 0:03:05.2]} 6... h6 {[%clk 0:03:03.8]}
7. Bxe7 {[%clk 0:03:03.9]} 7... Qxe7 {[%clk 0:03:05.7]} 8. Nf3 {[%clk
0:03:02.5]} 8... O-O {[%clk 0:03:05.5]} 9. Bd3 {[%clk 0:02:56.2]} 9... c5 {[%clk
0:03:06.2]} 10. Qd2 {[%clk 0:02:37.4]} 10... Nc6 {[%clk 0:03:03.4]} 11. O-O-O
{[%clk 0:01:58.3]} 11... cxd4 {[%clk 0:03:04.3]} 12. Nb5 {[%clk 0:01:56]} 12...
Ndxe5 {[%clk 0:03:05.2]} 13. Nbxd4 {[%clk 0:01:55.1]} 13... Nxd4 {[%clk
0:03:05]} 14. Nxd4 {[%clk 0:01:55.4]} 14... Bd7 {[%clk 0:03:05.1]} 15. g4 {[%clk
0:01:52.1]} 15... f5 {[%clk 0:02:43.9]} 16. g5 {[%clk 0:01:51.4]} 16... hxg5
{[%clk 0:02:12.1]} 17. hxg5 {[%clk 0:01:50.3]} 17... Ng6 {[%clk 0:02:12.9]} 18.
Rh5 {[%clk 0:01:43.6]} 18... Qd6 {[%clk 0:02:11.9]} 19. Ne2 {[%clk 0:01:37.6]}
19... Kf7 {[%clk 0:02:11.4]} 20. Rdh1 {[%clk 0:01:35.9]} 20... Rh8 {[%clk
0:02:12.6]} 21. f4 {[%clk 0:01:33.1]} 21... Rxh5 {[%clk 0:02:12.6]} 22. Rxh5
{[%clk 0:01:35]} 22... Rh8 {[%clk 0:02:13.7]} 23. Rxh8 {[%clk 0:01:35.9]} 23...
Nxh8 {[%clk 0:02:15.6]} 24. Nd4 {[%clk 0:01:34.8]} 24... Ng6 {[%clk 0:02:16.4]}
25. Ne2 {[%clk 0:01:31.3]} 25... e5 {[%clk 0:02:16.3]} 26. fxe5 {[%clk
0:01:31.3]} 26... Qxe5 {[%clk 0:02:18.2]} 27. Qb4 {[%clk 0:01:26.8]} 27... Bc6
{[%clk 0:02:17.3]} 28. Nd4 {[%clk 0:01:22]} 28... a5 {[%clk 0:02:11.1]} 29. Qc3
{[%clk 0:01:17.8]} 29... Qe3+ {[%clk 0:02:03.4]} 30. Kd1 {[%clk 0:01:13.6]}
30... Qg1+ {[%clk 0:02:01.7]} 31. Ke2 {[%clk 0:01:11.9]} 31... Nf4+ {[%clk
0:02:02.6]} 32. Kf3 {[%clk 0:01:11.7]} 32... Qg4+ {[%clk 0:02:00.5]} 33. Kf2
{[%clk 0:01:10.6]} 33... Nh3+ {[%clk 0:01:59.4]} 34. Ke1 {[%clk 0:01:08.3]}
34... Qg3+ {[%clk 0:01:59.3]} 35. Kd2 {[%clk 0:01:08.7]} 35... Qf4+ {[%clk
0:01:57.9]} 36. Ke2 {[%clk 0:01:07.5]} 36... Ng1+ {[%clk 0:01:57]} 37. Kd1
{[%clk 0:01:05.5]} 37... Qg4+ {[%clk 0:01:53.4]} 38. Be2 {[%clk 0:01:04.4]}
38... Nxe2 {[%clk 0:01:40.9]} 39. Nxe2 {[%clk 0:01:05.2]} 39... Qxg5 {[%clk
0:01:38]} 40. Qxa5 {[%clk 0:01:05.7]} 40... Qe3 {[%clk 0:01:21.2]} 41. Qc7+
{[%clk 0:01:05.1]} 41... Kf6 {[%clk 0:01:16.3]} 42. Qd6+ {[%clk 0:01:05.9]}
42... Kg5 {[%clk 0:01:17.4]} 43. Qd8+ {[%clk 0:01:05.2]} 43... Kg4 {[%clk
0:01:16.3]} 44. Qc7 {[%clk 0:01:02.7]} 44... g5 {[%clk 0:01:13.9]} 45. Qh2
{[%clk 0:01:02.3]} 45... d4 {[%clk 0:01:13.2]} 46. a3 {[%clk 0:00:53.3]} 46...
Bf3 {[%clk 0:01:13.3]} 47. b3 {[%clk 0:00:50.4]} 47... f4 {[%clk 0:01:12.4]} 48.
Ke1 {[%clk 0:00:47.1]} 48... Bxe2 {[%clk 0:01:09.1]} 49. Qxe2+ {[%clk
0:00:47.5]} 49... f3 {[%clk 0:01:09.9]} 50. Qxe3 {[%clk 0:00:43.7]} 50... dxe3
{[%clk 0:01:11.8]} 51. a4 {[%clk 0:00:45.2]} 51... Kg3 {[%clk 0:01:12.9]} 52.
Kf1 {[%clk 0:00:45]} 52... e2+ {[%clk 0:01:13.4]} 53. Ke1 {[%clk 0:00:45.6]}
53... Kg2 {[%clk 0:01:15]} 0-1

[Event "*** Titled Tuesday 3|2 Blitz"]
[Site "Chess.com"]
[Date "2016.05.03"]
[Round "1"]
[White "Aygehovit1992"]
[Black "Saitama_Hero"]
[Result "1-0"]
[WhiteElo "2511"]
[BlackElo "2154"]
[TimeControl "180+2"]
[EndTime "11:08:13 PDT"]
[Termination "Aygehovit1992 won by resignation"]

1. e4 {[%clk 0:02:59.1]} 1... c5 {[%clk 0:02:59.3]} 2. Nf3 {[%clk 0:02:59]} 2...
d6 {[%clk 0:03:00.9]} 3. d4 {[%clk 0:03:00.2]} 3... cxd4 {[%clk 0:03:02.8]} 4.
Nxd4 {[%clk 0:03:01.9]} 4... Nf6 {[%clk 0:03:04.4]} 5. Nc3 {[%clk 0:03:03.5]}
5... g6 {[%clk 0:03:05.9]} 6. Be3 {[%clk 0:03:03.7]} 6... Bg7 {[%clk 0:03:07.5]}
7. f3 {[%clk 0:03:03.6]} 7... Nc6 {[%clk 0:03:07.6]} 8. Qd2 {[%clk 0:03:04.6]}
8... O-O {[%clk 0:03:08.4]} 9. O-O-O {[%clk 0:03:05.5]} 9... d5 {[%clk 0:03:10]}
10. exd5 {[%clk 0:03:06]} 10... Nxd5 {[%clk 0:03:11.9]} 11. Nxc6 {[%clk
0:03:07.2]} 11... bxc6 {[%clk 0:03:13.7]} 12. Bd4 {[%clk 0:03:08]} 12... Bxd4
{[%clk 0:03:08.1]} 13. Qxd4 {[%clk 0:03:08.9]} 13... Qb6 {[%clk 0:03:07.3]} 14.
Na4 {[%clk 0:03:09]} 14... Qa5 {[%clk 0:03:03.4]} 15. b3 {[%clk 0:03:09.8]}
15... Qc7 {[%clk 0:02:42.8]} 16. h4 {[%clk 0:03:07]} 16... Be6 {[%clk
0:02:08.4]} 17. h5 {[%clk 0:03:04.6]} 17... Qf4+ {[%clk 0:02:08.3]} 18. Qxf4
{[%clk 0:03:03.7]} 18... Nxf4 {[%clk 0:02:10.2]} 19. Nc5 {[%clk 0:03:01.7]}
19... Rad8 {[%clk 0:02:04.9]} 20. Rxd8 {[%clk 0:02:58.1]} 20... Rxd8 {[%clk
0:02:04.9]} 21. hxg6 {[%clk 0:02:58.5]} 21... hxg6 {[%clk 0:02:04.6]} 22. g3
{[%clk 0:02:59]} 22... Rd5 {[%clk 0:02:01.1]} 23. Nxe6 {[%clk 0:02:48]} 23...
Nxe6 {[%clk 0:02:03]} 24. Bc4 {[%clk 0:02:49.6]} 24... Rd6 {[%clk 0:02:04.4]}
25. Re1 {[%clk 0:02:43]} 25... Kg7 {[%clk 0:01:36.1]} 26. Bxe6 {[%clk
0:02:43.5]} 26... fxe6 {[%clk 0:01:38]} 27. Re4 {[%clk 0:02:40.6]} 27... g5
{[%clk 0:01:35.6]} 28. Ra4 {[%clk 0:02:40.2]} 28... Rd7 {[%clk 0:01:32]} 29. Ra6
{[%clk 0:02:40.7]} 29... Rc7 {[%clk 0:01:32.2]} 30. Kd2 {[%clk 0:02:42.2]} 30...
Kf6 {[%clk 0:01:33.4]} 31. Ke3 {[%clk 0:02:43.2]} 31... c5 {[%clk 0:01:29.7]}
32. c4 {[%clk 0:02:42.6]} 32... Ke5 {[%clk 0:01:26.6]} 33. Ra5 {[%clk
0:02:41.8]} 33... Kd6 {[%clk 0:01:17.5]} 34. Rb5 {[%clk 0:02:42.6]} 34... Rc6
{[%clk 0:00:53.2]} 35. Ke4 {[%clk 0:02:32.9]} 35... Kc7 {[%clk 0:00:49.6]} 36.
Ke5 {[%clk 0:02:30.1]} 36... a6 {[%clk 0:00:50]} 37. Ra5 {[%clk 0:02:28.1]}
37... Kb6 {[%clk 0:00:51.5]} 38. Ra4 {[%clk 0:02:27.9]} 38... Rd6 {[%clk
0:00:52.5]} 39. b4 {[%clk 0:02:22.1]} 39... cxb4 {[%clk 0:00:53.4]} 40. Rxb4+
{[%clk 0:02:23.3]} 40... Kc5 {[%clk 0:00:55.1]} 41. Ra4 {[%clk 0:02:21.5]} 41...
Rd3 {[%clk 0:00:43.4]} 42. Ke4 {[%clk 0:02:20.2]} 42... Rd4+ {[%clk 0:00:37.3]}
43. Ke3 {[%clk 0:02:21.4]} 43... Rd6 {[%clk 0:00:34.7]} 44. Ra5+ {[%clk
0:02:18.1]} 44... Kxc4 {[%clk 0:00:34.4]} 45. Rxg5 {[%clk 0:02:19.5]} 45... Rd3+
{[%clk 0:00:35.4]} 46. Ke4 {[%clk 0:02:18.6]} 46... Rd2 {[%clk 0:00:36.1]} 47.
Ra5 {[%clk 0:02:16.3]} 47... Rd6 {[%clk 0:00:34.6]} 48. Ra3 {[%clk 0:02:12.7]}
48... Kb4 {[%clk 0:00:32.2]} 49. Rb3+ {[%clk 0:02:13.9]} 49... Kc4 {[%clk
0:00:33.8]} 50. Rb2 {[%clk 0:02:15.1]} 50... a5 {[%clk 0:00:34.1]} 51. g4 {[%clk
0:02:16.4]} 51... a4 {[%clk 0:00:34.5]} 52. g5 {[%clk 0:02:17.6]} 52... Kc3
{[%clk 0:00:31.7]} 53. Rg2 {[%clk 0:02:17.4]} 53... Rd8 {[%clk 0:00:27.9]} 54.
g6 {[%clk 0:02:18.6]} 54... Rg8 {[%clk 0:00:29.2]} 55. g7 {[%clk 0:02:19.9]}
55... a3 {[%clk 0:00:29.6]} 56. Ke5 {[%clk 0:02:21.1]} 56... Kd3 {[%clk
0:00:30.2]} 57. Kxe6 {[%clk 0:02:21.4]} 57... Ke3 {[%clk 0:00:32.1]} 58. Kf7
{[%clk 0:02:22.5]} 58... Kxf3 {[%clk 0:00:34]} 59. Kxg8 {[%clk 0:02:23.5]} 1-0

[Event "*** Titled Tuesday 3|2 Blitz"]
[Site "Chess.com"]
[Date "2016.05.03"]
[Round "1"]
[White "Lupul_Cenusiu"]
[Black "UltimateCrusher2"]
[Result "0-1"]
[WhiteElo "2428"]
[BlackElo "2098"]
[TimeControl "180+2"]
[EndTime "11:08:15 PDT"]
[Termination "UltimateCrusher2 won by checkmate"]

1. d4 {[%clk 0:03:01.4]} 1... b6 {[%clk 0:03:00]} 2. Nf3 {[%clk 0:03:01]} 2...
Nf6 {[%clk 0:03:00.1]} 3. Bg5 {[%clk 0:03:00.8]} 3... Bb7 {[%clk 0:02:55.7]} 4.
Nbd2 {[%clk 0:02:54.4]} 4... e6 {[%clk 0:02:47.9]} 5. e3 {[%clk 0:02:53.1]} 5...
Be7 {[%clk 0:02:46.4]} 6. Bd3 {[%clk 0:02:51.3]} 6... d5 {[%clk 0:02:47.6]} 7.
c4 {[%clk 0:02:48.9]} 7... Nbd7 {[%clk 0:02:47.7]} 8. O-O {[%clk 0:02:48.2]}
8... h6 {[%clk 0:02:47.5]} 9. Bh4 {[%clk 0:02:47.3]} 9... O-O {[%clk 0:02:47.9]}
10. Rc1 {[%clk 0:02:46.1]} 10... dxc4 {[%clk 0:02:47.5]} 11. Nxc4 {[%clk
0:02:44.1]} 11... c5 {[%clk 0:02:48.7]} 12. Qe2 {[%clk 0:02:38.6]} 12... cxd4
{[%clk 0:02:49.5]} 13. exd4 {[%clk 0:02:39]} 13... Nd5 {[%clk 0:02:48.5]} 14.
Bg3 {[%clk 0:02:37.8]} 14... N7f6 {[%clk 0:02:43.5]} 15. Nfe5 {[%clk 0:02:35.2]}
15... Rc8 {[%clk 0:02:42.1]} 16. Rfd1 {[%clk 0:02:33.5]} 16... Nd7 {[%clk
0:02:39.7]} 17. Bb1 {[%clk 0:02:28.1]} 17... Nxe5 {[%clk 0:02:40.6]} 18. dxe5
{[%clk 0:02:28.8]} 18... Qc7 {[%clk 0:02:27.5]} 19. Qc2 {[%clk 0:02:16.9]} 19...
g6 {[%clk 0:02:25.6]} 20. Qd2 {[%clk 0:02:17.9]} 20... Bg5 {[%clk 0:01:42.1]}
21. f4 {[%clk 0:02:18.3]} 21... Qc5+ {[%clk 0:01:43.2]} 22. Kh1 {[%clk
0:02:12.6]} 22... Be7 {[%clk 0:01:37.7]} 23. Nd6 {[%clk 0:02:09.7]} 23... Bxd6
{[%clk 0:01:27.7]} 24. Rxc5 {[%clk 0:02:07.6]} 24... Bxc5 {[%clk 0:01:29.6]} 25.
Be4 {[%clk 0:01:58.7]} 25... Rfd8 {[%clk 0:01:27.3]} 26. Bh4 {[%clk 0:01:50.2]}
26... Rd7 {[%clk 0:01:27.7]} 27. Qe1 {[%clk 0:01:44.3]} 27... Rcc7 {[%clk
0:01:12.6]} 28. Bxd5 {[%clk 0:01:35.5]} 28... Rxd5 {[%clk 0:01:08.8]} 29. Rxd5
{[%clk 0:01:32.6]} 29... Bxd5 {[%clk 0:01:10.7]} 30. h3 {[%clk 0:01:29.8]} 30...
Bxa2 {[%clk 0:01:07.8]} 31. Qd2 {[%clk 0:01:27.6]} 31... Bd5 {[%clk 0:01:08.5]}
32. f5 {[%clk 0:01:17]} 32... g5 {[%clk 0:01:03]} 33. Bxg5 {[%clk 0:01:15]}
33... hxg5 {[%clk 0:01:01.6]} 34. Qxg5+ {[%clk 0:01:15.3]} 34... Kh7 {[%clk
0:01:01.1]} 35. Qh4+ {[%clk 0:01:12.6]} 35... Kg7 {[%clk 0:00:59.1]} 36. Qg5+
{[%clk 0:01:05.4]} 36... Kh7 {[%clk 0:00:58.6]} 37. Qh5+ {[%clk 0:01:06.1]}
37... Kg7 {[%clk 0:00:58.1]} 38. Qg4+ {[%clk 0:01:02.7]} 38... Kf8 {[%clk
0:00:56.2]} 39. b4 {[%clk 0:01:00.4]} 39... Be3 {[%clk 0:00:49.4]} 40. Qh4
{[%clk 0:00:56.3]} 40... Rc2 {[%clk 0:00:38.5]} 41. Qh8+ {[%clk 0:00:51.2]}
41... Ke7 {[%clk 0:00:39.6]} 42. f6+ {[%clk 0:00:51.7]} 42... Kd7 {[%clk
0:00:39.7]} 43. Qf8 {[%clk 0:00:50.5]} 43... Bxg2+ {[%clk 0:00:35.9]} 44. Kh2
{[%clk 0:00:51.1]} 44... Be4+ {[%clk 0:00:34.4]} 45. Kg3 {[%clk 0:00:52]} 45...
Rg2+ {[%clk 0:00:35.6]} 46. Kh4 {[%clk 0:00:52.5]} 46... Bg5+ {[%clk 0:00:35.3]}
47. Kh5 {[%clk 0:00:53.5]} 47... Bg6# {[%clk 0:00:36.4]} 0-1

[Event "*** Titled Tuesday 3|2 Blitz"]
[Site "Chess.com"]
[Date "2016.05.03"]
[Round "1"]
[White "destroyer305"]
[Black "wonderfultime"]
[Result "0-1"]
[WhiteElo "2300"]
[BlackElo "2608"]
[TimeControl "180+2"]
[EndTime "11:08:34 PDT"]
[Termination "wonderfultime won by resignation"]

1. e4 {[%clk 0:02:59.4]} 1... c5 {[%clk 0:03:00.8]} 2. d4 {[%clk 0:02:59.5]}
2... cxd4 {[%clk 0:03:01.8]} 3. c3 {[%clk 0:03:01]} 3... Nf6 {[%clk 0:02:58]} 4.
e5 {[%clk 0:03:01.1]} 4... Nd5 {[%clk 0:02:59.3]} 5. Nf3 {[%clk 0:03:02.3]} 5...
e6 {[%clk 0:02:49.4]} 6. cxd4 {[%clk 0:03:02.1]} 6... d6 {[%clk 0:02:50.5]} 7.
a3 {[%clk 0:03:02.4]} 7... Nc6 {[%clk 0:02:51.3]} 8. Bd3 {[%clk 0:03:02.9]} 8...
dxe5 {[%clk 0:02:51.8]} 9. dxe5 {[%clk 0:03:03.5]} 9... Be7 {[%clk 0:02:37]} 10.
O-O {[%clk 0:03:03.3]} 10... O-O {[%clk 0:02:38.4]} 11. Qe2 {[%clk 0:02:56.1]}
11... b6 {[%clk 0:02:28.6]} 12. Rd1 {[%clk 0:02:50.4]} 12... Bb7 {[%clk
0:02:29.4]} 13. Bc2 {[%clk 0:02:40.8]} 13... Rc8 {[%clk 0:02:18.5]} 14. Qe4
{[%clk 0:02:06.8]} 14... g6 {[%clk 0:02:18.4]} 15. Bh6 {[%clk 0:02:07.3]} 15...
Re8 {[%clk 0:02:17.9]} 16. Nbd2 {[%clk 0:01:59.7]} 16... Na5 {[%clk 0:02:08.2]}
17. Qd3 {[%clk 0:01:24.7]} 17... b5 {[%clk 0:01:42.8]} 18. Ne4 {[%clk
0:01:15.1]} 18... Nc4 {[%clk 0:01:40.4]} 19. Rab1 {[%clk 0:00:56.3]} 19... Qc7
{[%clk 0:01:40.2]} 20. Bb3 {[%clk 0:00:26.3]} 20... Nxe5 {[%clk 0:01:40.8]} 21.
Nxe5 {[%clk 0:00:27.8]} 21... Qxe5 {[%clk 0:01:42.7]} 22. Re1 {[%clk 0:00:22.8]}
22... Qh5 {[%clk 0:01:32.1]} 23. Bd2 {[%clk 0:00:21]} 23... a6 {[%clk
0:01:27.7]} 24. Qg3 {[%clk 0:00:21]} 24... Nf6 {[%clk 0:01:17]} 25. Nd6 {[%clk
0:00:16]} 25... Bxd6 {[%clk 0:01:14.2]} 26. Qxd6 {[%clk 0:00:17.9]} 26... Ne4
{[%clk 0:01:13.4]} 27. Qf4 {[%clk 0:00:15.7]} 27... Nxd2 {[%clk 0:01:12.7]} 28.
Qxd2 {[%clk 0:00:17.6]} 28... Red8 {[%clk 0:01:10.6]} 29. Qe3 {[%clk 0:00:18]}
29... Qg4 {[%clk 0:01:09.8]} 30. f3 {[%clk 0:00:15.3]} 30... Qf5 {[%clk
0:01:11]} 31. Rbc1 {[%clk 0:00:15.7]} 31... h5 {[%clk 0:00:42.9]} 32. Red1
{[%clk 0:00:15.4]} 32... Rxc1 {[%clk 0:00:42.1]} 33. Rxc1 {[%clk 0:00:15.6]}
33... Rd3 {[%clk 0:00:43]} 34. Qb6 {[%clk 0:00:15.6]} 34... Bxf3 {[%clk
0:00:43]} 35. gxf3 {[%clk 0:00:10.8]} 35... Qg5+ {[%clk 0:00:41.7]} 36. Kf2
{[%clk 0:00:07.1]} 36... Qxc1 {[%clk 0:00:41.3]} 37. Qb8+ {[%clk 0:00:08.4]}
37... Kg7 {[%clk 0:00:42.6]} 38. Qe5+ {[%clk 0:00:09.3]} 38... Kh7 {[%clk
0:00:43.1]} 39. Qf6 {[%clk 0:00:09.7]} 39... Qe3+ {[%clk 0:00:43]} 40. Kg2
{[%clk 0:00:09.1]} 40... Rd2+ {[%clk 0:00:44.2]} 41. Kg3 {[%clk 0:00:10.5]}
41... Qg1+ {[%clk 0:00:45.2]} 42. Kf4 {[%clk 0:00:10.6]} 42... Qd4+ {[%clk
0:00:46.4]} 0-1